fUSD/lending_fUSD_20260624
["ID","MTS","AMOUNT","RATE_DAILY","PERIOD"]
[426288031,1782246650000,-151.983336,0.00026,2]
[426288032,1782246650000,-15239.35068509,0.00026,2]
[426288042,1782246650000,-960.5,0.00026296,2]
[426288033,1782246650000,-250.0,0.00026027,18]
[426288034,1782246650000,-680.0,0.00026061,7]
[426288035,1782246650000,-1808.45,0.00026075,2]
[426288043,1782246650000,-500.0,0.00026356,7]
[426288038,1782246650000,-150.0,0.00026093,2]
[426288041,1782246650000,-15239.35068509,0.00026222,2]
[426288023,1782246650000,-612.93611977,0.0002599,2]
[426288026,1782246650000,-4613.44123119,0.00026,2]
[426288071,1782246650000,-397.31419616,0.00026667,2]
[426288081,1782246650000,-208.70961373,0.00026668,2]
[426288101,1782246650000,-210.37268652,0.00026668,2]
[426288110,1782246650000,-181.846,0.00026768,14]
[426288105,1782246650000,-363.41490711,0.00026668,2]
[426288108,1782246650000,-1361.33294408,0.00026686,4]
[426288109,1782246650000,-3050.209,0.00026768,14]
[426288103,1782246650000,-312.49377421,0.00026668,2]
[426288113,1782246650000,-391.57836634,0.00026794,2]
[426288115,1782246650000,-152.63920562,0.00026794,2]
[426288114,1782246650000,-511.37592408,0.00026794,2]
[426288112,1782246650000,-607.751551,0.00026794,2]
[426288111,1782246650000,-357.0,0.00026779,7]
[426288102,1782246650000,-394.33200254,0.00026668,2]
[426288104,1782246650000,-441.61538948,0.00026668,2]
[426288122,1782246650000,-381.35903683,0.0002681,2]
[426288118,1782246650000,-397.70173611,0.00026794,2]
[426288124,1782246650000,-350.63639842,0.0002681,2]
[426288121,1782246650000,-413.25806552,0.0002681,2]
[426288116,1782246650000,-336.13700141,0.00026794,2]
[426288119,1782246650000,-546.49840456,0.00026794,2]
[426288117,1782246650000,-357.96015629,0.00026794,2]
[426288123,1782246650000,-301.65094097,0.0002681,2]
[426288125,1782246650000,-350.62169055,0.0002681,2]
[426288120,1782246650000,-301.64856785,0.00026794,2]
[426288074,1782246650000,-308.63233585,0.00026668,2]
[426288107,1782246650000,-355.86811526,0.00026668,2]
[426288099,1782246650000,-309.96394595,0.00026668,2]
[426288106,1782246650000,-346.12931724,0.00026668,2]
[426288100,1782246650000,-519.34504671,0.00026668,2]
[426288082,1782246650000,-441.66108262,0.00026668,2]
[426288098,1782246650000,-242.02757478,0.00026668,2]
[426288072,1782246650000,-320.65453194,0.00026667,2]
[426288073,1782246650000,-307.37371706,0.00026668,2]
[426288075,1782246650000,-179.21411992,0.00026668,2]
[426288070,1782246650000,-341.2467298,0.00026667,2]
[426288076,1782246650000,-314.49187604,0.00026668,2]
[426288079,1782246650000,-190.02590308,0.00026668,2]
[426288080,1782246650000,-154.22317271,0.00026668,2]
[426288078,1782246650000,-224.78717415,0.00026668,2]
[426288083,1782246650000,-181.87516516,0.00026668,2]
[426288085,1782246650000,-226.63246376,0.00026668,2]
[426288077,1782246650000,-316.19312258,0.00026668,2]
[426288087,1782246650000,-394.48776229,0.00026668,2]
[426288086,1782246650000,-382.11280776,0.00026668,2]
[426288088,1782246650000,-386.81305286,0.00026668,2]
[426288095,1782246650000,-213.60444313,0.00026668,2]
[426288090,1782246650000,-304.31746331,0.00026668,2]
[426288089,1782246650000,-428.16790424,0.00026668,2]
[426288096,1782246650000,-204.0118536,0.00026668,2]
[426288094,1782246650000,-306.38928385,0.00026668,2]
[426288091,1782246650000,-221.81365674,0.00026668,2]
[426288093,1782246650000,-309.65846975,0.00026668,2]
[426288092,1782246650000,-314.36466903,0.00026668,2]
[426288097,1782246650000,-417.25053912,0.00026668,2]
[426288084,1782246650000,-305.64073074,0.00026668,2]
[426288173,1782246651000,-15239.35068509,0.00027333,2]
[426288159,1782246651000,-747.80937859,0.00027186,2]
[426288166,1782246651000,-187.30590878,0.00027229,2]
[426288168,1782246651000,-573.7,0.00027248,2]
[426288171,1782246651000,-6083.0,0.00027331,2]
[426288160,1782246651000,-301.14337869,0.00027189,2]
[426288153,1782246651000,-573.72,0.00027103,2]
[426288158,1782246651000,-644.79446245,0.00027186,2]
[426288163,1782246651000,-185.0,0.00027214,2]
[426288162,1782246651000,-396.26,0.00027213,2]
[426288161,1782246651000,-200.0,0.00027189,2]
[426288167,1782246651000,-7000.0,0.00027238,10]
[426288156,1782246651000,-15239.35068509,0.00027111,2]
[426288170,1782246651000,-2214.22,0.00027277,7]
[426288184,1782246651000,-200.43,0.00027397,2]
[426288177,1782246651000,-1919.93,0.00027397,2]
[426288176,1782246651000,-497.237231,0.00027395,2]
[426288172,1782246651000,-3648.0,0.00027331,2]
[426288175,1782246651000,-8295.14561913,0.0002739,2]
[426288174,1782246651000,-819.50611093,0.0002739,2]
[426288189,1782246651000,-500.0,0.00027397,2]
[426288179,1782246651000,-267.23,0.00027397,2]
[426288190,1782246651000,-500.0,0.00027397,2]
[426288183,1782246651000,-150.0,0.00027397,2]
[426288180,1782246651000,-359.83,0.00027397,2]
[426288182,1782246651000,-160.0,0.00027397,2]
[426288185,1782246651000,-570.14631605,0.00027397,2]
[426288157,1782246651000,-350.0,0.00027138,5]
[426288169,1782246651000,-680.0,0.00027273,9]
[426288155,1782246651000,-573.71,0.0002711,2]
[426288133,1782246651000,-500.0,0.00027,7]
[426288165,1782246651000,-573.69,0.00027214,2]
[426288178,1782246651000,-312.7,0.00027397,2]
[426288126,1782246651000,-407.51566633,0.0002686,2]
[426288127,1782246651000,-188.57171914,0.0002686,2]
[426288140,1782246651000,-482.43,0.00027042,2]
[426288132,1782246651000,-500.0,0.00027,7]
[426288130,1782246651000,-500.0,0.00027,7]
[426288134,1782246651000,-500.0,0.00027,7]
[426288129,1782246651000,-55012.82467678,0.00027,2]
[426288139,1782246651000,-455.45,0.00027,7]
[426288131,1782246651000,-500.0,0.00027,7]
[426288135,1782246651000,-500.0,0.00027,7]
[426288128,1782246651000,-15239.35068509,0.00026889,2]
[426288136,1782246651000,-500.0,0.00027,7]
[426288164,1782246651000,-185.22,0.00027214,2]
[426288137,1782246651000,-500.0,0.00027,7]
[426288150,1782246651000,-152.13,0.00027073,2]
[426288145,1782246651000,-185.22,0.00027043,2]
[426288152,1782246651000,-151.0,0.00027073,2]
[426288146,1782246651000,-395.97,0.00027044,2]
[426288143,1782246651000,-573.53,0.00027043,2]
[426288142,1782246651000,-184.99,0.00027043,2]
[426288141,1782246651000,-185.22,0.00027042,2]
[426288144,1782246651000,-184.47,0.00027043,2]
[426288151,1782246651000,-151.0,0.00027073,2]
[426288149,1782246651000,-151.0,0.00027073,2]
[426288147,1782246651000,-500.0,0.00027053,2]
[426288148,1782246651000,-2000.0,0.00027053,2]
[426288154,1782246651000,-13379.64521044,0.00027107,2]
[426288138,1782246651000,-500.0,0.00027,7]
[426288187,1782246651000,-500.0,0.00027397,2]
[426288245,1782246651000,-2754.272956,0.00027397,2]
[426288181,1782246651000,-292.78551117,0.00027397,7]
[426288221,1782246651000,-242.986246,0.00027397,2]
[426288228,1782246651000,-1056.167942,0.00027397,2]
[426288225,1782246651000,-242.986246,0.00027397,2]
[426288223,1782246651000,-242.986246,0.00027397,2]
[426288224,1782246651000,-242.986246,0.00027397,2]
[426288227,1782246651000,-1056.167942,0.00027397,2]
[426288230,1782246651000,-1056.167942,0.00027397,2]
[426288240,1782246651000,-161.795167,0.00027397,2]
[426288229,1782246651000,-1056.167942,0.00027397,2]
[426288241,1782246651000,-161.795167,0.00027397,2]
[426288231,1782246651000,-1056.167942,0.00027397,2]
[426288232,1782246651000,-1056.167942,0.00027397,2]
[426288233,1782246651000,-1056.167942,0.00027397,2]
[426288222,1782246651000,-242.986246,0.00027397,2]
[426288234,1782246651000,-1056.167942,0.00027397,2]
[426288238,1782246651000,-161.795167,0.00027397,2]
[426288235,1782246651000,-1351.55,0.00027397,2]
[426288237,1782246651000,-161.795167,0.00027397,2]
[426288236,1782246651000,-161.795167,0.00027397,2]
[426288242,1782246651000,-161.795167,0.00027397,2]
[426288251,1782246651000,-2754.272956,0.00027397,2]
[426288250,1782246651000,-2754.272956,0.00027397,2]
[426288248,1782246651000,-2754.272956,0.00027397,2]
[426288246,1782246651000,-2754.272956,0.00027397,2]
[426288243,1782246651000,-161.795167,0.00027397,2]
[426288249,1782246651000,-2754.272956,0.00027397,2]
[426288247,1782246651000,-2754.272956,0.00027397,2]
[426288244,1782246651000,-2754.272956,0.00027397,2]
[426288239,1782246651000,-161.795167,0.00027397,2]
[426288219,1782246651000,-242.986246,0.00027397,2]
[426288186,1782246651000,-500.0,0.00027397,2]
[426288218,1782246651000,-300.0,0.00027397,2]
[426288188,1782246651000,-500.0,0.00027397,2]
[426288191,1782246651000,-500.0,0.00027397,2]
[426288192,1782246651000,-500.0,0.00027397,2]
[426288193,1782246651000,-500.0,0.00027397,2]
[426288194,1782246651000,-500.0,0.00027397,2]
[426288196,1782246651000,-500.0,0.00027397,2]
[426288197,1782246651000,-500.0,0.00027397,2]
[426288195,1782246651000,-500.0,0.00027397,2]
[426288220,1782246651000,-242.986246,0.00027397,2]
[426288199,1782246651000,-500.0,0.00027397,2]
[426288198,1782246651000,-500.0,0.00027397,2]
[426288201,1782246651000,-3000.0,0.00027397,2]
[426288202,1782246651000,-1500.0,0.00027397,2]
[426288200,1782246651000,-500.0,0.00027397,2]
[426288203,1782246651000,-814.18765773,0.00027397,2]
[426288204,1782246651000,-151.27539475,0.00027397,10]
[426288205,1782246651000,-178.65,0.00027397,31]
[426288226,1782246651000,-242.986246,0.00027397,2]
[426288216,1782246651000,-401.508067,0.00027397,2]
[426288211,1782246651000,-401.508067,0.00027397,2]
[426288207,1782246651000,-3095.42,0.00027397,2]
[426288210,1782246651000,-401.508067,0.00027397,2]
[426288217,1782246651000,-401.508067,0.00027397,2]
[426288214,1782246651000,-401.508067,0.00027397,2]
[426288209,1782246651000,-151.0,0.00027397,2]
[426288213,1782246651000,-401.508067,0.00027397,2]
[426288206,1782246651000,-430.13642933,0.00027397,2]
[426288208,1782246651000,-1475.2,0.00027397,2]
[426288215,1782246651000,-401.508067,0.00027397,2]
[426288212,1782246651000,-401.508067,0.00027397,2]
[426288296,1782246652000,-662.49162393,0.00027515,2]
[426288295,1782246652000,-417.41922746,0.00027515,2]
[426288299,1782246652000,-339.59110567,0.00027515,2]
[426288294,1782246652000,-308.44634542,0.00027515,2]
[426288290,1782246652000,-358.42823985,0.00027515,2]
[426288284,1782246652000,-360.91299125,0.00027515,2]
[426288285,1782246652000,-274.21558053,0.00027515,2]
[426288282,1782246652000,-480.9817979,0.00027515,2]
[426288286,1782246652000,-461.0605756,0.00027515,2]
[426288288,1782246652000,-234.07175158,0.00027515,2]
[426288283,1782246652000,-161.25019776,0.00027515,2]
[426288291,1782246652000,-471.73781406,0.00027515,2]
[426288298,1782246652000,-458.46109611,0.00027515,2]
[426288317,1782246652000,-420.74537305,0.00027516,2]
[426288306,1782246652000,-443.62731349,0.00027515,2]
[426288305,1782246652000,-456.47619497,0.00027515,2]
[426288300,1782246652000,-453.26492753,0.00027515,2]
[426288302,1782246652000,-591.73164343,0.00027515,2]
[426288303,1782246652000,-580.21957929,0.00027515,2]
[426288301,1782246652000,-573.16921164,0.00027515,2]
[426288304,1782246652000,-642.25185637,0.00027515,2]
[426288307,1782246652000,-471.54700355,0.00027515,2]
[426288308,1782246652000,-464.48770463,0.00027515,2]
[426288309,1782246652000,-459.58392577,0.00027516,2]
[426288310,1782246652000,-427.20888625,0.00027516,2]
[426288318,1782246652000,-591.49800381,0.00027516,2]
[426288319,1782246652000,-468.74066131,0.00027516,2]
[426288293,1782246652000,-380.05180616,0.00027515,2]
[426288297,1782246652000,-363.75033032,0.00027515,2]
[426288289,1782246652000,-462.94850377,0.00027515,2]
[426288268,1782246652000,-151.27539405,0.00027402,12]
[426288281,1782246652000,-595.97129424,0.00027515,2]
[426288313,1782246652000,-484.05514957,0.00027516,2]
[426288252,1782246652000,-13449.17,0.00027397,10]
[426288253,1782246652000,-25646.67,0.00027397,10]
[426288267,1782246652000,-1231.83,0.000274,2]
[426288256,1782246652000,-186.23228609,0.00027397,2]
[426288266,1782246652000,-1000.0,0.000274,2]
[426288258,1782246652000,-150.0,0.00027397,30]
[426288255,1782246652000,-169.79555284,0.00027397,2]
[426288257,1782246652000,-372.46457218,0.00027397,2]
[426288259,1782246652000,-150.0,0.00027398,2]
[426288260,1782246652000,-151.27539405,0.00027398,11]
[426288265,1782246652000,-1000.0,0.000274,2]
[426288264,1782246652000,-1538.77,0.000274,7]
[426288261,1782246652000,-1000.0,0.000274,2]
[426288262,1782246652000,-1154.55,0.000274,2]
[426288263,1782246652000,-150.0,0.000274,7]
[426288271,1782246652000,-151.27539405,0.00027476,16]
[426288270,1782246652000,-151.27539405,0.00027437,15]
[426288273,1782246652000,-205.37326623,0.000275,2]
[426288275,1782246652000,-500.0,0.000275,7]
[426288278,1782246652000,-588.98557239,0.00027515,2]
[426288274,1782246652000,-1435.304348,0.000275,30]
[426288276,1782246652000,-276.58142306,0.00027515,2]
[426288279,1782246652000,-511.8700947,0.00027515,2]
[426288272,1782246652000,-19238.00113913,0.00027482,2]
[426288280,1782246652000,-245.84896075,0.00027515,2]
[426288269,1782246652000,-151.27539405,0.00027414,14]
[426288277,1782246652000,-232.12735258,0.00027515,2]
[426288292,1782246652000,-449.5743483,0.00027515,2]
[426288287,1782246652000,-165.52322809,0.00027515,2]
[426288312,1782246652000,-625.87580868,0.00027516,2]
[426288254,1782246652000,-21372.23,0.00027397,10]
[426288311,1782246652000,-408.02370719,0.00027516,2]
[426288349,1782246652000,-238.00948578,0.00027645,2]
[426288346,1782246652000,-193.93112091,0.00027645,2]
[426288348,1782246652000,-194.75395088,0.00027645,2]
[426288357,1782246652000,-221.17687394,0.00027645,2]
[426288354,1782246652000,-536.94023443,0.00027645,2]
[426288347,1782246652000,-587.36754951,0.00027645,2]
[426288350,1782246652000,-767.06388613,0.00027645,2]
[426288370,1782246652000,-852.86,0.00027702,30]
[426288369,1782246652000,-156.64994,0.0002768,2]
[426288359,1782246652000,-246.98054318,0.00027645,2]
[426288358,1782246652000,-238.87042166,0.00027645,2]
[426288360,1782246652000,-619.88709828,0.00027661,2]
[426288361,1782246652000,-459.51818205,0.00027661,2]
[426288367,1782246652000,-852.86,0.00027672,7]
[426288365,1782246652000,-525.95459764,0.00027661,2]
[426288368,1782246652000,-844.37,0.00027672,7]
[426288362,1782246652000,-572.03855525,0.00027661,2]
[426288363,1782246652000,-452.47641145,0.00027661,2]
[426288366,1782246652000,-474.28968387,0.00027669,2]
[426288364,1782246652000,-525.93253583,0.00027661,2]
[426288373,1782246652000,-4551.04,0.00027711,7]
[426288376,1782246652000,-4642.85,0.00027711,7]
[426288371,1782246652000,-844.37,0.00027702,30]
[426288375,1782246652000,-5031.92,0.00027711,7]
[426288374,1782246652000,-4295.83,0.00027711,7]
[426288372,1782246652000,-5032.43,0.00027711,7]
[426288377,1782246652000,-611.2734995,0.00027712,2]
[426288378,1782246652000,-377.14343829,0.00027712,2]
[426288379,1782246652000,-151.27539405,0.00027718,19]
[426288351,1782246652000,-305.27841125,0.00027645,2]
[426288355,1782246652000,-819.74760684,0.00027645,2]
[426288315,1782246652000,-558.69685827,0.00027516,2]
[426288353,1782246652000,-596.55260417,0.00027645,2]
[426288316,1782246652000,-346.23003114,0.00027516,2]
[426288314,1782246652000,-464.94591892,0.00027516,2]
[426288320,1782246652000,-662.42308422,0.00027516,2]
[426288322,1782246652000,-519.19397586,0.00027516,2]
[426288323,1782246652000,-533.80217289,0.00027516,2]
[426288328,1782246652000,-5032.43,0.0002755,30]
[426288329,1782246652000,-4551.04,0.0002755,30]
[426288332,1782246652000,-844.37,0.0002755,2]
[426288356,1782246652000,-452.47285178,0.00027645,2]
[426288321,1782246652000,-545.12236067,0.00027516,2]
[426288326,1782246652000,-285.941618,0.0002755,2]
[426288325,1782246652000,-185.0,0.0002754,5]
[426288327,1782246652000,-852.86,0.0002755,2]
[426288331,1782246652000,-5031.92,0.0002755,30]
[426288330,1782246652000,-4295.83,0.0002755,30]
[426288340,1782246652000,-852.86,0.00027611,30]
[426288324,1782246652000,-151.27539405,0.00027533,17]
[426288339,1782246652000,-1919.93,0.00027608,2]
[426288345,1782246652000,-911.6273265,0.00027645,2]
[426288343,1782246652000,-852.86,0.00027641,2]
[426288338,1782246652000,-498.52025,0.00027584,2]
[426288335,1782246652000,-852.86,0.0002758,7]
[426288352,1782246652000,-504.20550212,0.00027645,2]
[426288341,1782246652000,-844.37,0.00027611,30]
[426288337,1782246652000,-323.28457604,0.00027584,2]
[426288342,1782246652000,-151.27539405,0.00027612,18]
[426288336,1782246652000,-844.37,0.0002758,7]
[426288334,1782246652000,-15239.35068509,0.00027556,2]
[426288344,1782246652000,-844.37,0.00027641,2]
[426288333,1782246652000,-4642.85,0.0002755,30]
[426288428,1782246653000,-156.64994,0.00027945,2]
[426288423,1782246653000,-573.62,0.0002793,2]
[426288425,1782246653000,-1361.0,0.00027945,2]
[426288420,1782246653000,-386.17,0.00027925,2]
[426288418,1782246653000,-396.93,0.00027925,2]
[426288412,1782246653000,-482.46,0.00027904,2]
[426288416,1782246653000,-844.37,0.00027916,2]
[426288415,1782246653000,-852.86,0.00027916,2]
[426288414,1782246653000,-151.0,0.00027916,2]
[426288413,1782246653000,-646.6,0.00027904,2]
[426288410,1782246653000,-844.37,0.00027885,30]
[426288419,1782246653000,-644.42,0.00027925,2]
[426288426,1782246653000,-383.0,0.00027945,2]
[426288439,1782246653000,-844.37,0.00027977,30]
[426288427,1782246653000,-1229.0,0.00027945,2]
[426288435,1782246653000,-2877.0,0.00027947,6]
[426288434,1782246653000,-844.37,0.00027946,7]
[426288431,1782246653000,-3000.0,0.00027945,2]
[426288424,1782246653000,-573.64,0.00027932,2]
[426288433,1782246653000,-852.86,0.00027946,7]
[426288432,1782246653000,-814.18765773,0.00027945,2]
[426288430,1782246653000,-156.64994,0.00027945,2]
[426288447,1782246653000,-2152.43,0.00028,7]
[426288437,1782246653000,-1000.0,0.0002797,2]
[426288436,1782246653000,-500.0,0.0002797,2]
[426288448,1782246653000,-300.0,0.00028,7]
[426288440,1782246653000,-2000.0,0.00027994,7]
[426288417,1782246653000,-711.0,0.00027918,2]
[426288429,1782246653000,-156.64994,0.00027945,2]
[426288422,1782246653000,-573.69,0.00027929,2]
[426288394,1782246653000,-153.0,0.00027824,2]
[426288411,1782246653000,-152.76,0.00027893,2]
[426288438,1782246653000,-852.86,0.00027977,30]
[426288382,1782246653000,-200.0,0.00027737,2]
[426288380,1782246653000,-852.86,0.00027733,2]
[426288383,1782246653000,-486.17053644,0.00027763,2]
[426288385,1782246653000,-852.86,0.00027763,7]
[426288395,1782246653000,-260.0,0.00027847,10]
[426288396,1782246653000,-339.71,0.00027847,10]
[426288384,1782246653000,-150.0,0.00027763,2]
[426288389,1782246653000,-844.37,0.00027794,30]
[426288392,1782246653000,-852.86,0.00027824,2]
[426288387,1782246653000,-15239.35068509,0.00027778,2]
[426288393,1782246653000,-844.37,0.00027824,2]
[426288391,1782246653000,-1919.93,0.00027819,2]
[426288390,1782246653000,-344.19,0.00027814,2]
[426288386,1782246653000,-844.37,0.00027763,7]
[426288388,1782246653000,-852.86,0.00027794,30]
[426288397,1782246653000,-151.27539405,0.00027854,21]
[426288400,1782246653000,-185.22,0.00027865,2]
[426288408,1782246653000,-680.0,0.00027879,9]
[426288398,1782246653000,-852.86,0.00027855,7]
[426288399,1782246653000,-844.37,0.00027855,7]
[426288407,1782246653000,-4642.85,0.00027872,2]
[426288405,1782246653000,-4295.83,0.00027872,2]
[426288401,1782246653000,-644.42,0.00027865,2]
[426288402,1782246653000,-152.0,0.00027867,3]
[426288403,1782246653000,-5032.43,0.00027872,2]
[426288404,1782246653000,-4551.04,0.00027872,2]
[426288406,1782246653000,-5031.92,0.00027872,2]
[426288409,1782246653000,-852.86,0.00027885,30]
[426288421,1782246653000,-573.69,0.00027929,2]
[426288381,1782246653000,-844.37,0.00027733,2]
[426288443,1782246653000,-301.34889746,0.00028,2]
[426288441,1782246653000,-178.64205784,0.00027999,2]
[426288487,1782246653000,-654.820538,0.00028,7]
[426288480,1782246653000,-1056.167942,0.00028,7]
[426288485,1782246653000,-654.820538,0.00028,7]
[426288479,1782246653000,-1311.858511,0.00028,7]
[426288488,1782246653000,-151.0,0.00028,7]
[426288486,1782246653000,-654.820538,0.00028,7]
[426288476,1782246653000,-1311.858511,0.00028,7]
[426288482,1782246653000,-1056.167942,0.00028,7]
[426288483,1782246653000,-1056.167942,0.00028,7]
[426288484,1782246653000,-654.820538,0.00028,7]
[426288490,1782246653000,-161.795167,0.00028,7]
[426288500,1782246653000,-187.792673,0.00028,7]
[426288489,1782246653000,-151.0,0.00028,7]
[426288491,1782246653000,-161.795167,0.00028,7]
[426288493,1782246653000,-161.795167,0.00028,7]
[426288492,1782246653000,-161.795167,0.00028,7]
[426288494,1782246653000,-151.0,0.00028,7]
[426288499,1782246653000,-2754.272956,0.00028,7]
[426288495,1782246653000,-285.146264,0.00028,7]
[426288498,1782246653000,-187.792673,0.00028,7]
[426288497,1782246653000,-187.792673,0.00028,7]
[426288496,1782246653000,-187.792673,0.00028,7]
[426288501,1782246653000,-2754.272956,0.00028,7]
[426288504,1782246653000,-2135.12188443,0.00028,2]
[426288503,1782246653000,-2754.272956,0.00028,7]
[426288505,1782246653000,-2135.12188443,0.00028,2]
[426288502,1782246653000,-2754.272956,0.00028,7]
[426288507,1782246653000,-1993.101868,0.00028,7]
[426288442,1782246653000,-4814684.4480831,0.00028,30]
[426288481,1782246653000,-1311.858511,0.00028,7]
[426288477,1782246653000,-1311.858511,0.00028,7]
[426288506,1782246653000,-1993.101868,0.00028,7]
[426288475,1782246653000,-151.0,0.00028,7]
[426288478,1782246653000,-1056.167942,0.00028,7]
[426288444,1782246653000,-153055.5975,0.00028,2]
[426288446,1782246653000,-7000.0,0.00028,5]
[426288449,1782246653000,-1933.09,0.00028,7]
[426288453,1782246653000,-176.96574041,0.00028,14]
[426288460,1782246653000,-151.0,0.00028,7]
[426288457,1782246653000,-300.0,0.00028,7]
[426288452,1782246653000,-176.96574041,0.00028,14]
[426288450,1782246653000,-176.96574042,0.00028,14]
[426288451,1782246653000,-176.96574042,0.00028,14]
[426288454,1782246653000,-600.0,0.00028,2]
[426288458,1782246653000,-166.0,0.00028,30]
[426288456,1782246653000,-169.58806504,0.00028,7]
[426288455,1782246653000,-15239.35068509,0.00028,2]
[426288445,1782246653000,-7000.0,0.00028,2]
[426288461,1782246653000,-151.0,0.00028,7]
[426288471,1782246653000,-242.986246,0.00028,7]
[426288469,1782246653000,-151.0,0.00028,7]
[426288468,1782246653000,-242.986246,0.00028,7]
[426288467,1782246653000,-216.39158367,0.00028,10]
[426288459,1782246653000,-166.0,0.00028,30]
[426288465,1782246653000,-401.508067,0.00028,7]
[426288470,1782246653000,-242.986246,0.00028,7]
[426288462,1782246653000,-401.508067,0.00028,7]
[426288464,1782246653000,-401.508067,0.00028,7]
[426288474,1782246653000,-151.0,0.00028,7]
[426288463,1782246653000,-401.508067,0.00028,7]
[426288472,1782246653000,-242.986246,0.00028,7]
[426288473,1782246653000,-151.0,0.00028,7]
[426288466,1782246653000,-216.39158367,0.00028,30]
[426288552,1782246654000,-626.12884119,0.0002808,2]
[426288548,1782246654000,-340.93825274,0.0002808,2]
[426288547,1782246654000,-628.98375208,0.0002808,2]
[426288549,1782246654000,-491.6979215,0.0002808,2]
[426288546,1782246654000,-537.64235977,0.0002808,2]
[426288551,1782246654000,-462.66951813,0.0002808,2]
[426288544,1782246654000,-468.14350315,0.0002808,2]
[426288541,1782246654000,-548.43116106,0.0002808,2]
[426288539,1782246654000,-641.30906387,0.0002808,2]
[426288543,1782246654000,-331.04645617,0.0002808,2]
[426288542,1782246654000,-614.74743413,0.0002808,2]
[426288545,1782246654000,-617.2646717,0.0002808,2]
[426288556,1782246654000,-509.38665851,0.0002808,2]
[426288553,1782246654000,-883.32216524,0.0002808,2]
[426288563,1782246654000,-665.44097023,0.0002808,2]
[426288555,1782246654000,-611.28146148,0.0002808,2]
[426288567,1782246654000,-640.81332938,0.00028081,2]
[426288559,1782246654000,-773.62610572,0.0002808,2]
[426288558,1782246654000,-764.22561552,0.0002808,2]
[426288557,1782246654000,-679.89739129,0.0002808,2]
[426288560,1782246654000,-788.97552458,0.0002808,2]
[426288561,1782246654000,-856.33580849,0.0002808,2]
[426288562,1782246654000,-608.63492662,0.0002808,2]
[426288575,1782246654000,-788.66400508,0.00028081,2]
[426288565,1782246654000,-619.3169395,0.0002808,2]
[426288570,1782246654000,-726.08272435,0.00028081,2]
[426288550,1782246654000,-570.07770924,0.0002808,2]
[426288554,1782246654000,-545.62549548,0.0002808,2]
[426288540,1782246654000,-322.50039551,0.0002808,2]
[426288523,1782246654000,-1846.33,0.0002803,2]
[426288533,1782246654000,-844.37,0.00028068,30]
[426288511,1782246654000,-589.258295,0.00028,7]
[426288510,1782246654000,-3000.0,0.00028,3]
[426288508,1782246654000,-1993.101868,0.00028,7]
[426288512,1782246654000,-589.258295,0.00028,7]
[426288509,1782246654000,-1993.101868,0.00028,7]
[426288513,1782246654000,-589.258295,0.00028,7]
[426288515,1782246654000,-1150.4948476,0.00028,2]
[426288525,1782246654000,-4551.04,0.00028033,30]
[426288514,1782246654000,-589.258295,0.00028,7]
[426288519,1782246654000,-1331.7576687,0.00028,2]
[426288516,1782246654000,-1150.4948476,0.00028,2]
[426288517,1782246654000,-278364.15849631,0.00028,2]
[426288520,1782246654000,-852.86,0.00028007,2]
[426288537,1782246654000,-682.4934596,0.0002808,2]
[426288526,1782246654000,-4295.83,0.00028033,30]
[426288522,1782246654000,-151.27539405,0.00028024,22]
[426288524,1782246654000,-5032.43,0.00028033,30]
[426288521,1782246654000,-844.37,0.00028007,2]
[426288527,1782246654000,-5031.92,0.00028033,30]
[426288528,1782246654000,-4642.85,0.00028033,30]